[Event "FIDE World Rapid-ch Open 2018"]
[White "Vokhidov, Shamsiddin"]
[Black "Novikov, Stanislav"]
[Site "St. Petersburg"]
[Round "1.85"]
[Annotator "ChessBase"]
[Result "1/2-1/2"]
[Date "2018.12.26"]
[WhiteElo "2480"]
[BlackElo "2540"]
[PlyCount "165"]
[TimeControl "900+10"]

1. e4 {[%emt 0:0:0]} g6 {[%emt 0:0:0]} 2. d4 {[%emt 0:0:0]} Bg7 {[%emt 0:0:0]} 3. Nc3 {[%emt 0:0:0]} c6 {[%emt 0:0:0]} 4. Bc4 {[%emt 0:0:34]} b5 {[%emt 0:0:0]} 5. Bb3 {[%emt 0:0:2]} a5 {[%emt 0:0:0]} 6. a3 {[%emt 0:0:0]} Ba6 {[%emt 0:0:4]} 7. Nf3 {[%emt 0:0:4]} b4 {[%emt 0:0:19]} 8. Na4 {[%emt 0:0:32]
} Bb5 {[%emt 0:1:37]} 9. Bd2 {[%emt 0:1:27]} Nf6 {[%emt 0:0:0]} 10. e5 {[%emt 0:0:39]} Nd5 {[%emt 0:0:4]} 11. c4 {[%emt 0:2:19]} bxc3 {[%emt 0:3:8]} 12. bxc3 {[%emt 0:0:26]} 0-0 {[%emt 0:0:41]} 13. c4 {[%emt 0:1:12]
} Bxa4 {[%emt 0:0:2]} 14. Bxa4 {[%emt 0:0:20]} Nb6 {[%emt 0:0:0]} 15. Bb3 {[%emt 0:0:13]} d6 {[%emt 0:0:26]} 16. 0-0 {[%emt 0:0:40]} c5 {[%emt 0:0:47]} 17. dxc5 {[%emt 0:2:23]} dxc5 {[%emt 0:0:2]} 18. Qe2 {[%emt 0:0:2]
} Nc6 {[%emt 0:0:23]} 19. Rad1 {[%emt 0:0:36]} Qc7 {[%emt 0:0:0]} 20. Bc3 {[%emt 0:0:50]} Rfd8 {[%emt 0:0:49]} 21. Qe3 {[%emt 0:0:6]} a4 {[%emt 0:1:12]} 22. Ba2 {[%emt 0:0:2]} e6 {[%emt 0:0:40]} 23. h4 {[%emt 0:0:0]} Nd4 {[%emt 0:2:59]} 24. Nxd4 {[%emt 0:0:25]} cxd4 {[%emt 0:0:1]} 25. Rxd4 {[%emt 0:0:2]} Rxd4 {[%emt 0:1:10]} 26. Bxd4 {[%emt 0:0:7]} Nd7 {[%emt 0:0:7]
} 27. Re1 {[%emt 0:0:56]} Bf8 {[%emt 0:0:10]} 28. h5 {[%emt 0:0:0]} Rb8 {[%emt 0:0:10]} 29. Rd1 {[%emt 0:1:11]} Nc5 {[%emt 0:0:9]} 30. Rb1 {[%emt 0:0:15]} Rxb1+ {[%emt 0:0:11]} 31. Bxb1 {[%emt 0:0:1]} Nb3 {[%emt 0:0:1]
} 32. Bb2 {[%emt 0:0:13]} Qxc4 {[%emt 0:0:7]} 33. Bd3 {[%emt 0:0:35]
} Qd5 {[%emt 0:0:59]} 34. hxg6 {[%emt 0:0:8]} hxg6 {[%emt 0:0:0]} 35. Qe4 {[%emt 0:0:14]} Qd7 {[%emt 0:0:28]} 36. Bc2 {[%emt 0:0:9]} Qd2 {[%emt 0:0:15]} 37. Qd3 {[%emt 0:0:39]} Qe1+ {[%emt 0:0:38]} 38. Qf1 {[%emt 0:0:1]
} Qd2 {[%emt 0:0:6]} 39. Qd3 {[%emt 0:0:1]} Qe1+ {[%emt 0:0:0]} 40. Qf1 {[%emt 0:0:1]} Qa5 {[%emt 0:0:0]} 41. Qd3 {[%emt 0:0:52]} Nc5 {[%emt 0:0:20]} 42. Bc3 {[%emt 0:0:37]} Nxd3 {[%emt 0:1:2]} 43. Bxa5 {[%emt 0:0:1]
} Nxe5 {[%emt 0:0:4]} 44. Bc3 {[%emt 0:0:13]} Ng4 {[%emt 0:0:0]} 45. Bd1 {[%emt 0:0:6]} f5 {[%emt 0:0:13]} 46. Bxa4 {[%emt 0:0:55]} Bc5 {[%emt 0:0:13]} 47. Be1 {[%emt 0:0:17]} Bxa3 {[%emt 0:0:1]} 48. Bb3 {[%emt 0:0:2]
} Kf7 {[%emt 0:0:1]} 49. Kf1 {[%emt 0:0:2]} Bc5 {[%emt 0:0:0]} 50. g3 {[%emt 0:0:9]} Bd4 {[%emt 0:0:6]} 51. Ke2 {[%emt 0:0:5]} Kf6 {[%emt 0:0:3]} 52. f3 {[%emt 0:0:5]} Ne5 {[%emt 0:0:13]} 53. f4 {[%emt 0:0:0]} Nf7 {[%emt 0:0:29]} 54. Kf3 {[%emt 0:0:7]} g5 {[%emt 0:0:14]} 55. g4 {[%emt 0:0:15]} gxf4 {[%emt 0:0:28]} 56. gxf5 {[%emt 0:0:2]} Kxf5 {[%emt 0:0:6]
} 57. Bxe6+ {[%emt 0:0:5]} Kxe6 {[%emt 0:0:1]} 58. Kxf4 {[%emt 0:0:1]
} Be5+ {[%emt 0:0:4]} 59. Ke4 {[%emt 0:0:5]} Nd6+ {[%emt 0:0:0]} 60. Kd3 {[%emt 0:0:1]} Kd5 {[%emt 0:0:1]} 61. Bc3 {[%emt 0:0:3]} Bg3 {[%emt 0:0:9]} 62. Bb4 {[%emt 0:0:3]} Nc4 {[%emt 0:0:4]} 63. Bc3 {[%emt 0:0:3]
} Bf4 {[%emt 0:0:6]} 64. Bf6 {[%emt 0:0:3]} Nd6 {[%emt 0:0:0]} 65. Bd4 {[%emt 0:0:3]} Ne4 {[%emt 0:0:5]} 66. Be3 {[%emt 0:0:10]} Be5 {[%emt 0:0:5]} 67. Bb6 {[%emt 0:0:4]} Ng5 {[%emt 0:0:11]} 68. Be3 {[%emt 0:0:3]
} Ne6 {[%emt 0:0:1]} 69. Bd2 {[%emt 0:0:11]} Nc5+ {[%emt 0:0:0]} 70. Ke3 {[%emt 0:0:1]} Bd4+ {[%emt 0:0:17]} 71. Kf3 {[%emt 0:0:2]} Ne6 {[%emt 0:0:7]} 72. Be3 {[%emt 0:0:3]} Bc3 {[%emt 0:0:5]} 73. Bf4 {[%emt 0:0:6]
} Nd4+ {[%emt 0:0:4]} 74. Ke3 {[%emt 0:0:1]} Bb2 {[%emt 0:0:0]} 75. Kd3 {[%emt 0:0:3]} Ne6 {[%emt 0:0:10]} 76. Be3 {[%emt 0:0:4]} Bf6 {[%emt 0:0:17]} 77. Bf2 {[%emt 0:0:6]} Nf4+ {[%emt 0:0:1]} 78. Ke3 {[%emt 0:0:2]
} Bg5 {[%emt 0:0:2]} 79. Kf3 {[%emt 0:0:7]} Nd3 {[%emt 0:0:0]} 80. Be3 {[%emt 0:0:12]} Ne5+ {[%emt 0:0:1]} 81. Ke2 {[%emt 0:0:1]} Be7 {[%emt 0:0:8]} 82. Bf4 {[%emt 0:0:2]} Ng6 {[%emt 0:0:4]} 83. Kf3 {[%emt 0:0:3]
} 1/2-1/2

[Event "FIDE World Rapid-ch Open 2018"]
[White "Lintchevski, Daniil"]
[Black "Perdomo, Carlos Andres"]
[Site "St. Petersburg"]
[Round "1.86"]
[Annotator "ChessBase"]
[Result "1-0"]
[Date "2018.12.26"]
[WhiteElo "2516"]
[BlackElo "2301"]
[PlyCount "121"]
[TimeControl "900+10"]

1. e4 {[%emt 0:0:4]} c5 {[%emt 0:0:0]} 2. Nf3 {[%emt 0:0:4]} e6 {[%emt 0:0:0]} 3. d4 {[%emt 0:0:2]} cxd4 {[%emt 0:0:3]} 4. Nxd4 {[%emt 0:0:3]} a6 {[%emt 0:0:14]} 5. Bd3 {[%emt 0:0:3]} d6 {[%emt 0:0:31]} 6. c4 {[%emt 0:0:0]} Nd7 {[%emt 0:0:3]} 7. 0-0 {[%emt 0:0:21]} Qc7 {[%emt 0:0:42]} 8. Nc3 {[%emt 0:0:38]} Ngf6 {[%emt 0:0:48]} 9. f4 {[%emt 0:0:26]} Be7 {[%emt 0:0:0]} 10. Qe2 {[%emt 0:0:22]} g6 {[%emt 0:0:53]} 11. Bd2 {[%emt 0:0:44]} e5 {[%emt 0:4:50]} 12. Nf3 {[%emt 0:0:27]} exf4 {[%emt 0:0:58]} 13. Bxf4 {[%emt 0:0:57]
} 0-0 {[%emt 0:0:52]} 14. Kh1 {[%emt 0:0:50]} Nc5 {[%emt 0:0:0]} 15. e5 {[%emt 0:1:47]} Nh5 {[%emt 0:1:49]} 16. Bh6 {[%emt 0:1:50]} Nxd3 {[%emt 0:0:43]} 17. Qxd3 Bf5 {[%emt 0:0:27]} 18. Qe2 {[%emt 0:0:56]} dxe5 {[%emt 0:0:55]
} 19. Nd5 {[%emt 0:0:10]} Qd8 {[%emt 0:0:28]} 20. Qxe5 {[%emt 0:1:28]
} Re8 {[%emt 0:0:7]} 21. Qd4 {[%emt 0:0:33]} Bf6 {[%emt 0:0:0]} 22. Nxf6+ {[%emt 0:0:28]} Qxf6 {[%emt 0:0:2]} 23. Rad1 {[%emt 0:0:49]} Qxd4 {[%emt 0:0:20]} 24. Nxd4 {[%emt 0:0:17]} Be4 {[%emt 0:0:8]} 25. Kg1 {[%emt 0:0:3]
} f5 {[%emt 0:0:4]} 26. Nb3 {[%emt 0:0:2]} Rac8 {[%emt 0:0:0]} 27. Rd4 {[%emt 0:0:20]} Ng7 {[%emt 0:0:15]} 28. Bxg7 {[%emt 0:0:29]} Kxg7 {[%emt 0:0:1]} 29. Rd7+ {[%emt 0:0:1]} Kf6 {[%emt 0:0:9]} 30. Nd2 {[%emt 0:0:14]
} Bc6 {[%emt 0:0:13]} 31. Rd6+ {[%emt 0:0:17]} Kg7 {[%emt 0:0:0]} 32. Kf2 {[%emt 0:0:17]} Rcd8 {[%emt 0:0:11]} 33. Rxd8 Rxd8 34. Nb3 {[%emt 0:0:6]
} Kf6 {[%emt 0:0:16]} 35. Re1 {[%emt 0:0:4]} Rd3 {[%emt 0:0:0]} 36. Re2 {[%emt 0:0:16]} Rd1 {[%emt 0:0:6]} 37. Nc5 {[%emt 0:0:9]} Rd4 {[%emt 0:0:19]} 38. b3 {[%emt 0:0:20]} Rg4 {[%emt 0:0:12]} 39. g3 {[%emt 0:0:0]} Rd4 {[%emt 0:0:1]} 40. Ke3 {[%emt 0:0:35]} Rd1 {[%emt 0:0:8]} 41. a4 {[%emt 0:0:28]} Rb1 {[%emt 0:0:12]} 42. Kd4 {[%emt 0:0:13]} Rd1+ {[%emt 0:0:5]
} 43. Kc3 {[%emt 0:0:7]} h5 {[%emt 0:0:5]} 44. b4 {[%emt 0:0:0]} Rf1 {[%emt 0:0:15]} 45. b5 {[%emt 0:0:8]} axb5 {[%emt 0:0:2]} 46. axb5 {[%emt 0:0:40]} Bf3 {[%emt 0:0:3]} 47. Re6+ {[%emt 0:0:1]} Kf7 {[%emt 0:0:7]
} 48. Rb6 {[%emt 0:0:5]} Rf2 {[%emt 0:0:14]} 49. Nd3 {[%emt 0:0:0]} Re2 {[%emt 0:0:13]} 50. c5 {[%emt 0:0:14]} Re3 {[%emt 0:0:20]} 51. Rd6 {[%emt 0:1:14]} g5 {[%emt 0:0:21]} 52. c6 {[%emt 0:0:15]} bxc6 {[%emt 0:0:0]} 53. bxc6 {[%emt 0:0:1]} Re6 {[%emt 0:0:11]} 54. Rxe6 {[%emt 0:0:19]
} Kxe6 {[%emt 0:0:2]} 55. c7 {[%emt 0:0:1]} Bb7 {[%emt 0:0:1]} 56. Nc5+ {[%emt 0:0:1]
} Kd6 {[%emt 0:0:3]} 57. Nxb7+ {[%emt 0:0:7]} Kxc7 {[%emt 0:0:0]} 58. Nc5 {[%emt 0:0:10]} Kd6 {[%emt 0:0:5]} 59. Kd4 {[%emt 0:0:1]} h4 {[%emt 0:0:1]} 60. gxh4 {[%emt 0:0:3]} gxh4 {[%emt 0:0:3]} 61. Nd3 {[%emt 0:0:17]
 Kd5+ Ke4+} 1-0

[Event "FIDE World Rapid-ch Open 2018"]
[White "Tang, Andrew"]
[Black "Smirin, Ilia"]
[Site "St. Petersburg"]
[Round "1.87"]
[Annotator "ChessBase"]
[Result "0-1"]
[Date "2018.12.26"]
[WhiteElo "2487"]
[BlackElo "2609"]
[PlyCount "98"]
[TimeControl "900+10"]

1. d4 {[%emt 0:0:0]} Nf6 {[%emt 0:1:20]} 2. c4 {[%emt 0:0:0]} g6 {[%emt 0:0:0]} 3. Nc3 {[%emt 0:0:5]} Bg7 {[%emt 0:0:1]} 4. e4 {[%emt 0:0:3]} d6 {[%emt 0:0:1]} 5. f3 {[%emt 0:0:2]} a6 {[%emt 0:0:10]} 6. Be3 {[%emt 0:0:0]} 0-0 {[%emt 0:0:16]} 7. Nge2 {[%emt 0:0:11]} Nc6 {[%emt 0:0:5]} 8. Rb1 {[%emt 0:0:4]} Ne8 {[%emt 0:0:56]} 9. b4 {[%emt 0:2:22]} f5 {[%emt 0:0:5]
} 10. b5 {[%emt 0:1:1]} Na5 {[%emt 0:0:20]} 11. bxa6 {[%emt 0:0:28]} Rxa6 {[%emt 0:0:26]
} 12. Nf4 {[%emt 0:1:23]} Nc6 {[%emt 0:1:24]} 13. c5 {[%emt 0:0:0]} Ra3 {[%emt 0:0:32]} 14. Qc1 {[%emt 0:0:14]} Ra8 {[%emt 0:1:10]} 15. cxd6 {[%emt 0:0:50]} cxd6 {[%emt 0:1:14]} 16. Qd2 {[%emt 0:0:56]} Nf6 {[%emt 0:1:3]
} 17. exf5 {[%emt 0:3:43]} Bxf5 {[%emt 0:0:15]} 18. Bc4+ {[%emt 0:1:5]
} Kh8 {[%emt 0:0:34]} 19. Ne6 {[%emt 0:0:15]} Qc8 {[%emt 0:0:0]} 20. Nxf8 {[%emt 0:0:11]} Bxb1 {[%emt 0:0:3]} 21. Be6 {[%emt 0:0:9]} Qxf8 {[%emt 0:0:45]} 22. Nxb1 {[%emt 0:0:1]} Nh5 {[%emt 0:0:21]} 23. 0-0 {[%emt 0:1:43]
} Qf6 {[%emt 0:0:6]} 24. d5 {[%emt 0:0:2]} Nd4 {[%emt 0:0:0]} 25. Bg4 {[%emt 0:0:13]} Nf4 {[%emt 0:0:35]} 26. Nc3 {[%emt 0:0:2]} Ra3 {[%emt 0:1:5]} 27. Bxf4 {[%emt 0:1:29]} Rxc3 {[%emt 0:0:6]} 28. Re1 {[%emt 0:0:20]
} Rc2 {[%emt 0:1:14]} 29. Qe3 {[%emt 0:0:5]} h5 {[%emt 0:0:0]} 30. Bg5 {[%emt 0:0:27]} Qe5 {[%emt 0:0:26]} 31. Qxe5 {[%emt 0:0:15]} Bxe5 {[%emt 0:0:2]} 32. f4 {[%emt 0:0:15]} Bf6 {[%emt 0:0:40]} 33. Bxf6+ {[%emt 0:0:6]
} exf6 {[%emt 0:0:2]} 34. Bf3 {[%emt 0:0:6]} b5 {[%emt 0:0:0]} 35. Re8+ {[%emt 0:0:2]} Kg7 {[%emt 0:0:1]} 36. Rd8 {[%emt 0:0:1]} Rxa2 {[%emt 0:1:10]} 37. Rxd6 {[%emt 0:0:1]} b4 {[%emt 0:0:2]} 38. Rb6 {[%emt 0:0:1]
} b3 {[%emt 0:0:53]} 39. Be4 {[%emt 0:0:5]} f5 {[%emt 0:0:13]
} 40. Bd3 {[%emt 0:0:36]} Rd2 {[%emt 0:0:2]} 41. Bf1 {[%emt 0:0:30]} b2 {[%emt 0:0:13]
} 42. d6 {[%emt 0:0:1]} Kf6 {[%emt 0:0:22]} 43. Rb7 {[%emt 0:0:0]} Ke6 {[%emt 0:0:16]} 44. d7 {[%emt 0:0:2]} Ke7 {[%emt 0:0:0]} 45. h4 {[%emt 0:0:11]} Ne6 {[%emt 0:0:12]} 46. Kh2 {[%emt 0:0:18]} Nxf4 {[%emt 0:0:15]
} 47. Kg3 {[%emt 0:0:12]} Ne6 {[%emt 0:0:6]} 48. Bc4 {[%emt 0:0:0]} Nc5 {[%emt 0:0:8]} 49. Rb6 {[%emt 0:0:9]} Nxd7 {[%emt 0:0:7]} 0-1

[Event "FIDE World Rapid-ch Open 2018"]
[White "Postny, Evgeny"]
[Black "Vorotnikov, Vladislav V"]
[Site "St. Petersburg"]
[Round "1.88"]
[Annotator "ChessBase"]
[Result "1-0"]
[Date "2018.12.26"]
[WhiteElo "2615"]
[BlackElo "2417"]
[PlyCount "77"]
[TimeControl "900+10"]

1. d4 {[%emt 0:0:0]} d6 {[%emt 0:0:7]} 2. Nf3 {[%emt 0:0:0]} Nf6 {[%emt 0:0:29]
} 3. c4 {[%emt 0:0:0]} Bg4 {[%emt 0:0:8]} 4. Qb3 {[%emt 0:0:0]} Nc6 {[%emt 0:0:13]} 5. d5 {[%emt 0:1:37]} Bxf3 {[%emt 0:0:10]} 6. gxf3 {[%emt 0:0:11]} Nd4 {[%emt 0:0:31]} 7. Qd1 {[%emt 0:0:17]} e5 {[%emt 0:0:0]} 8. Bh3 {[%emt 0:0:44]} g6 {[%emt 0:0:47]} 9. Rg1 {[%emt 0:1:0]} Nd7 {[%emt 0:2:23]
} 10. Nc3 {[%emt 0:1:59]} Qh4 {[%emt 0:3:50]} 11. Bxd7+ {[%emt 0:0:15]
} Kxd7 {[%emt 0:0:2]} 12. Qa4+ {[%emt 0:0:35]} c6 {[%emt 0:0:0]} 13. Be3 {[%emt 0:0:50]} Bh6 {[%emt 0:0:48]} 14. 0-0-0 {[%emt 0:0:51]} Rhc8 {[%emt 0:0:56]} 15. Kb1 {[%emt 0:0:13]} Ke7 {[%emt 0:1:35]} 16. dxc6 {[%emt 0:0:56]
} bxc6 {[%emt 0:0:31]} 17. Qa3 {[%emt 0:2:27]} Rd8 {[%emt 0:0:0]} 18. Rg4 {[%emt 0:1:55]} Qxh2 {[%emt 0:0:47]} 19. Bxd4 {[%emt 0:0:2]} exd4 {[%emt 0:0:2]} 20. Rgxd4 {[%emt 0:0:3]} Bg7 {[%emt 0:0:28]} 21. R4d3 {[%emt 0:0:16]} Rd7 {[%emt 0:0:39]} 22. Ne4 {[%emt 0:0:19]} Rad8 {[%emt 0:0:0]} 23. Qa4 {[%emt 0:1:5]} Qe5 {[%emt 0:0:27]} 24. Nc3 {[%emt 0:0:7]} Qc5 {[%emt 0:0:29]} 25. e3 {[%emt 0:0:51]} f5 {[%emt 0:0:11]} 26. f4 {[%emt 0:0:4]
} Rb7 {[%emt 0:0:13]} 27. R1d2 {[%emt 0:0:5]} Rb4 {[%emt 0:0:0]} 28. Qd1 {[%emt 0:0:14]} Rxc4 {[%emt 0:0:7]} 29. Ne2 {[%emt 0:0:10]} d5 {[%emt 0:0:15]} 30. Nd4 {[%emt 0:0:9]} Kf7 {[%emt 0:0:20]} 31. b3 {[%emt 0:0:0]} Rb8 {[%emt 0:0:10]} 32. Rb2 {[%emt 0:0:2]} Bxd4 {[%emt 0:0:34]} 33. exd4 {[%emt 0:0:2]} Qb6 {[%emt 0:0:13]} 34. Re2 {[%emt 0:0:48]} Rb4 {[%emt 0:0:22]
} 35. Qe1 {[%emt 0:0:8]} Rb7 {[%emt 0:0:29]} 36. Re8 {[%emt 0:0:0]} Rxd4 {[%emt 0:0:27]} 37. Qe6+ {[%emt 0:0:4]} Kg7 {[%emt 0:0:0]} 38. Rg8+ {[%emt 0:0:5]} Kh6 {[%emt 0:0:3]} 39. Rh3# {[%emt 0:0:2]} 1-0

[Event "FIDE World Rapid-ch Open 2018"]
[White "Danielyan, Vahe"]
[Black "Demidov, Mikhail"]
[Site "St. Petersburg"]
[Round "1.89"]
[Annotator "ChessBase"]
[Result "0-1"]
[Date "2018.12.26"]
[WhiteElo "2220"]
[BlackElo "2520"]
[PlyCount "108"]
[TimeControl "900+10"]

1. e4 {[%emt 0:0:0]} Nf6 {[%emt 0:0:0]} 2. d3 {[%emt 0:0:9]} d5 {[%emt 0:0:0]} 3. Nd2 {[%emt 0:0:2]} e6 {[%emt 0:1:55]} 4. Ngf3 {[%emt 0:0:3]} c5 {[%emt 0:0:1]} 5. g3 {[%emt 0:0:5]} Nc6 {[%emt 0:0:1]} 6. Bg2 {[%emt 0:0:0]} g6 {[%emt 0:0:2]} 7. 0-0 {[%emt 0:0:6]} Bg7 {[%emt 0:0:2]} 8. exd5 {[%emt 0:1:31]} Nxd5 {[%emt 0:0:2]} 9. Ne4 {[%emt 0:0:32]} b6 {[%emt 0:0:48]
} 10. h4 {[%emt 0:0:11]} h6 {[%emt 0:1:36]} 11. c4 {[%emt 0:0:0]} Nde7 {[%emt 0:0:20]} 12. Bf4 {[%emt 0:2:24]} e5 {[%emt 0:0:52]} 13. Be3 {[%emt 0:0:1]} Bb7 {[%emt 0:3:8]} 14. h5 {[%emt 0:1:6]} f5 {[%emt 0:0:0]} 15. Nc3 {[%emt 0:0:1]} g5 {[%emt 0:0:3]} 16. Re1 {[%emt 0:2:19]} Qd7 {[%emt 0:0:23]} 17. a3 {[%emt 0:1:11]} 0-0-0 {[%emt 0:1:22]} 18. Nd5 {[%emt 0:1:10]
} Nxd5 {[%emt 0:2:41]} 19. cxd5 {[%emt 0:0:0]} Ne7 {[%emt 0:0:0]} 20. b4 {[%emt 0:0:9]} Nxd5 {[%emt 0:0:2]} 21. bxc5 {[%emt 0:1:33]} Nxe3 {[%emt 0:0:2]} 22. fxe3 {[%emt 0:0:13]} e4 {[%emt 0:0:34]} 23. Rc1 {[%emt 0:0:42]
} bxc5 {[%emt 0:1:49]} 24. Rxc5+ {[%emt 0:0:18]} Kb8 {[%emt 0:0:0]} 25. Ne5 {[%emt 0:0:33]} Qd6 {[%emt 0:1:21]} 26. Nc6+ {[%emt 0:0:8]} Bxc6 {[%emt 0:0:8]} 27. Qb3+ {[%emt 0:0:2]} Ka8 {[%emt 0:0:5]} 28. Rec1 {[%emt 0:0:7]
} Rb8 {[%emt 0:0:21]} 29. Qf7 {[%emt 0:0:32]} Bb7 {[%emt 0:0:0]} 30. Qxg7 {[%emt 0:0:4]} Qxg3 {[%emt 0:0:3]} 31. Qc3 {[%emt 0:0:24]} exd3 {[%emt 0:0:14]} 32. Qd2 {[%emt 0:0:11]} Rhd8 {[%emt 0:0:17]} 33. Rxf5 {[%emt 0:0:9]
} Bxg2 {[%emt 0:0:13]} 34. Qxg2+ {[%emt 0:0:2]} Qxg2+ {[%emt 0:0:1]
} 35. Kxg2 {[%emt 0:0:1]} Rb3 {[%emt 0:0:7]} 36. e4 {[%emt 0:0:0]} Rxa3 {[%emt 0:0:14]} 37. e5 {[%emt 0:0:4]} d2 {[%emt 0:0:16]} 38. Rd1 {[%emt 0:0:1]} Re3 {[%emt 0:0:1]} 39. Kf2 {[%emt 0:0:15]} Re4 {[%emt 0:0:1]
} 40. Rf6 {[%emt 0:0:17]} Rxe5 {[%emt 0:0:7]} 41. Rxh6 {[%emt 0:0:1]
} Rf8+ {[%emt 0:0:28]} 42. Kg3 {[%emt 0:0:10]} Re3+ {[%emt 0:0:0]} 43. Kg4 {[%emt 0:0:23]} Rd8 {[%emt 0:0:17]} 44. Ra6 {[%emt 0:0:1]} Rd5 {[%emt 0:0:20]} 45. h6 {[%emt 0:0:12]} Re4+ {[%emt 0:0:1]} 46. Kh5 {[%emt 0:0:10]
} g4+ {[%emt 0:0:13]} 47. Kg6 {[%emt 0:0:8]} g3 {[%emt 0:0:0]} 48. h7 {[%emt 0:0:1]} Rg4+ {[%emt 0:0:6]} 49. Kf6 {[%emt 0:0:33]} Rh4 {[%emt 0:0:6]} 50. Ra2 {[%emt 0:0:10]} Rh6+ {[%emt 0:0:28]} 51. Kg7 {[%emt 0:0:3]
} Rdh5 {[%emt 0:0:1]} 52. Rdxd2 {[%emt 0:0:7]} Rxh7+ {[%emt 0:0:1]
} 53. Kg6 {[%emt 0:0:1]} R5h6+ {[%emt 0:0:10]} 54. Kg5 {[%emt 0:0:2]
} Rh2 {[%emt 0:0:3]} 0-1

[Event "FIDE World Rapid-ch Open 2018"]
[White "Tsydypov, Zhamsaran"]
[Black "Chen, Qi b"]
[Site "St. Petersburg"]
[Round "1.90"]
[Annotator "ChessBase"]
[Result "1-0"]
[Date "2018.12.26"]
[WhiteElo "2529"]
[BlackElo "2437"]
[PlyCount "105"]
[TimeControl "900+10"]

1. c4 {[%emt 0:0:0]} Nf6 {[%emt 0:0:0]} 2. Nf3 {[%emt 0:0:0]} g6 {[%emt 0:0:6]
} 3. Nc3 {[%emt 0:0:3]} Bg7 {[%emt 0:0:2]} 4. e4 {[%emt 0:0:0]} d6 {[%emt 0:0:2]} 5. d4 {[%emt 0:0:2]} 0-0 {[%emt 0:0:2]} 6. Be2 {[%emt 0:0:17]
} Na6 {[%emt 0:0:3]} 7. 0-0 {[%emt 0:0:12]} e5 {[%emt 0:0:2]
} 8. Re1 {[%emt 0:0:29]} c6 {[%emt 0:0:58]} 9. d5 {[%emt 0:0:4]} c5 {[%emt 0:0:23]
} 10. Nd2 {[%emt 0:1:13]} Kh8 {[%emt 0:0:52]} 11. Nf1 {[%emt 0:0:0]} Ng8 {[%emt 0:0:27]} 12. Ng3 {[%emt 0:0:6]} Bd7 {[%emt 0:1:55]} 13. a3 {[%emt 0:0:19]} f5 {[%emt 0:1:10]} 14. exf5 {[%emt 0:0:8]} gxf5 {[%emt 0:0:12]
} 15. Nh5 {[%emt 0:0:26]} Bh6 {[%emt 0:0:35]} 16. f4 {[%emt 0:0:0]} e4 {[%emt 0:0:16]} 17. b4 {[%emt 0:1:18]} Nf6 {[%emt 0:0:39]} 18. Bb2 {[%emt 0:7:47]} Nxh5 {[%emt 0:0:25]} 19. Bxh5 {[%emt 0:0:3]} Bg7 {[%emt 0:0:11]
} 20. b5 {[%emt 0:0:4]} Nc7 {[%emt 0:0:24]} 21. Na4 {[%emt 0:0:0]} Bxb2 {[%emt 0:1:41]} 22. Nxb2 {[%emt 0:0:1]} Qf6 {[%emt 0:0:6]} 23. Qd2 {[%emt 0:0:8]} Rg8 {[%emt 0:0:9]} 24. Re3 {[%emt 0:0:12]} Rg7 {[%emt 0:2:29]
} 25. Qc3 {[%emt 0:0:29]} Qxc3 {[%emt 0:2:38]} 26. Rxc3 {[%emt 0:0:1]
} Bxb5 {[%emt 0:0:36]} 27. cxb5 {[%emt 0:0:39]} Nxd5 {[%emt 0:0:0]} 28. Rc2 {[%emt 0:0:57]} Nxf4 {[%emt 0:0:14]} 29. Bd1 {[%emt 0:0:1]} d5 {[%emt 0:0:15]} 30. Kf1 {[%emt 0:0:22]} Ne6 {[%emt 0:0:28]} 31. Rd2 {[%emt 0:0:9]
} Nd4 {[%emt 0:0:40]} 32. Na4 {[%emt 0:0:4]} b6 {[%emt 0:0:0]} 33. Nc3 {[%emt 0:0:1]} Rd7 {[%emt 0:0:23]} 34. a4 {[%emt 0:0:32]} Kg7 {[%emt 0:0:31]} 35. a5 {[%emt 0:0:18]} Rb8 {[%emt 0:0:15]} 36. axb6 {[%emt 0:0:4]
} axb6 {[%emt 0:0:1]} 37. Rda2 {[%emt 0:0:21]} Kf6 {[%emt 0:0:0]} 38. Ra7 {[%emt 0:0:6]} Rbd8 {[%emt 0:0:4]} 39. Rxd7 {[%emt 0:0:5]
} Rxd7 {[%emt 0:0:1]} 40. Ra6 {[%emt 0:0:1]} Rd6 {[%emt 0:0:12]} 41. Rxb6 {[%emt 0:0:7]} Rxb6 {[%emt 0:0:19]} 42. Nxd5+ {[%emt 0:0:2]} Ke5 {[%emt 0:0:0]} 43. Nxb6 {[%emt 0:0:1]} Nxb5 {[%emt 0:0:1]} 44. Be2 {[%emt 0:0:49]
} Nc3 {[%emt 0:0:8]} 45. Bc4 {[%emt 0:0:26]} e3 {[%emt 0:0:13]} 46. Bd3 {[%emt 0:0:23]
} h6 {[%emt 0:0:57]} 47. Nd7+ {[%emt 0:0:35]} Kd4 {[%emt 0:0:0]} 48. Bxf5 {[%emt 0:0:2]} c4 {[%emt 0:0:1]} 49. Nb6 {[%emt 0:0:32]} Na2 {[%emt 0:0:27]} 50. Nxc4 {[%emt 0:0:7]} Kxc4 {[%emt 0:0:19]} 51. Be6+ {[%emt 0:0:3]
} Kd3 {[%emt 0:0:2]} 52. Bxa2 {[%emt 0:0:3]} Kd2 {[%emt 0:0:0]} 53. Bc4 {[%emt 0:0:1]} 1-0

[Event "FIDE World Rapid-ch Open 2018"]
[White "Gurvich, Vitaly"]
[Black "Khanin, Semen"]
[Site "St. Petersburg"]
[Round "1.91"]
[Annotator "ChessBase"]
[Result "0-1"]
[Date "2018.12.26"]
[WhiteElo "2270"]
[BlackElo "2514"]
[PlyCount "148"]
[TimeControl "900+10"]

1. c4 {[%emt 0:0:0]} Nf6 {[%emt 0:0:0]} 2. Nc3 {[%emt 0:0:0]} e5 {[%emt 0:0:0]
} 3. g3 {[%emt 0:0:1]} c6 {[%emt 0:0:1]} 4. d4 {[%emt 0:0:0]} exd4 {[%emt 0:0:2]} 5. Qxd4 {[%emt 0:0:3]} Na6 {[%emt 0:0:2]} 6. Bg2 {[%emt 0:0:50]} Bc5 {[%emt 0:0:3]} 7. Qd2 {[%emt 0:1:41]} 0-0 {[%emt 0:0:0]} 8. Nf3 {[%emt 0:2:34]} Nc7 {[%emt 0:0:41]} 9. Qc2 {[%emt 0:2:17]} d5 {[%emt 0:1:49]
} 10. cxd5 {[%emt 0:0:7]} Ncxd5 {[%emt 0:0:4]} 11. Nxd5 {[%emt 0:3:16]
} Qxd5 {[%emt 0:0:2]} 12. Nh4 {[%emt 0:0:21]} Bb4+ {[%emt 0:0:0]} 13. Bd2 {[%emt 0:0:9]} Bxd2+ {[%emt 0:0:23]} 14. Qxd2 {[%emt 0:0:0]} Qxd2+ {[%emt 0:0:9]} 15. Kxd2 {[%emt 0:0:2]} Rd8+ {[%emt 0:0:3]} 16. Ke1 {[%emt 0:0:52]} Be6 {[%emt 0:0:25]} 17. f4 {[%emt 0:0:58]} Ng4 {[%emt 0:0:0]} 18. Bf3 {[%emt 0:0:35]} Rd4 {[%emt 0:2:54]} 19. h3 {[%emt 0:1:18]} Nf6 {[%emt 0:0:14]} 20. Kf2 {[%emt 0:0:24]} Rad8 {[%emt 0:0:23]} 21. b3 {[%emt 0:0:27]
} h6 {[%emt 0:0:49]} 22. Ng2 {[%emt 0:0:24]} a5 {[%emt 0:1:14]
} 23. Ne3 {[%emt 0:0:27]} g6 {[%emt 0:1:22]} 24. Rhc1 {[%emt 0:0:52]} a4 {[%emt 0:0:39]
} 25. Nc4 {[%emt 0:0:8]} Bxh3 {[%emt 0:2:37]} 26. bxa4 {[%emt 0:0:3]
} Be6 {[%emt 0:1:1]} 27. Ne5 {[%emt 0:0:38]} Rxa4 {[%emt 0:0:0]} 28. Rab1 {[%emt 0:0:3]} Ra7 {[%emt 0:1:8]} 29. a4 {[%emt 0:0:10]} Bd5 {[%emt 0:0:34]} 30. a5 {[%emt 0:0:17]} Bxf3 {[%emt 0:0:2]} 31. Kxf3 {[%emt 0:0:6]
} Nd7 {[%emt 0:1:5]} 32. Nc4 {[%emt 0:0:6]} Nc5 {[%emt 0:0:0]} 33. Rd1 {[%emt 0:0:8]} Rxd1 {[%emt 0:0:3]} 34. Rxd1 {[%emt 0:0:1]} Ra8 {[%emt 0:0:2]} 35. e4 {[%emt 0:0:24]} Kf8 {[%emt 0:0:10]} 36. f5 {[%emt 0:0:5]
} gxf5 {[%emt 0:0:2]} 37. exf5 {[%emt 0:0:1]} Ke7 {[%emt 0:0:0]} 38. g4 {[%emt 0:0:19]} Rd8 {[%emt 0:0:11]} 39. f6+ {[%emt 0:0:2]} Ke8 {[%emt 0:0:3]} 40. Rh1 {[%emt 0:0:6]} Rd3+ {[%emt 0:0:6]} 41. Ke2 {[%emt 0:0:6]
} Rd4 {[%emt 0:0:3]} 42. Ne3 {[%emt 0:0:10]} Kd7 {[%emt 0:0:0]} 43. Rxh6 {[%emt 0:0:7]} Ke6 {[%emt 0:0:2]} 44. g5 {[%emt 0:0:21]} Ne4 {[%emt 0:0:3]} 45. g6 {[%emt 0:0:19]} fxg6 {[%emt 0:0:1]} 46. Rxg6 {[%emt 0:0:5]
} Nxf6 {[%emt 0:0:2]} 47. Rg7 {[%emt 0:0:11]} Rb4 {[%emt 0:0:0]} 48. Kd3 {[%emt 0:0:15]} Rb3+ {[%emt 0:0:1]} 49. Ke2 {[%emt 0:0:17]} Nd5 {[%emt 0:0:25]} 50. Nc4 {[%emt 0:0:7]} Nf4+ {[%emt 0:0:5]} 51. Kd2 {[%emt 0:0:13]
} Nd5 {[%emt 0:0:11]} 52. Rh7 {[%emt 0:0:13]} Ne7 {[%emt 0:0:0]} 53. Kc2 {[%emt 0:0:7]} Rb5 {[%emt 0:0:1]} 54. Rh6+ {[%emt 0:0:8]} Kd5 {[%emt 0:0:9]} 55. Kc3 {[%emt 0:0:11]} Kc5 {[%emt 0:0:1]} 56. Nd6 {[%emt 0:0:12]
} Nd5+ {[%emt 0:0:11]} 57. Kc2 {[%emt 0:0:9]} Rb4 {[%emt 0:0:0]} 58. Nc8 {[%emt 0:0:12]} Kb5 {[%emt 0:0:10]} 59. Na7+ {[%emt 0:0:7]} Ka6 {[%emt 0:0:19]} 60. Nc8 {[%emt 0:0:9]} Kxa5 {[%emt 0:0:2]} 61. Nd6 {[%emt 0:0:13]
} b5 {[%emt 0:0:10]} 62. Nc8 {[%emt 0:0:9]} Rc4+ {[%emt 0:0:0]} 63. Kb2 {[%emt 0:0:1]} b4 {[%emt 0:0:28]} 64. Na7 {[%emt 0:0:7]} Kb6 {[%emt 0:0:35]} 65. Nc8+ {[%emt 0:0:10]} Kc7 {[%emt 0:0:24]} 66. Na7 {[%emt 0:0:14]
} Kb7 {[%emt 0:0:6]} 67. Rh7+ {[%emt 0:0:17]} Nc7 {[%emt 0:0:0]} 68. Kb3 {[%emt 0:0:13]} Rg4 {[%emt 0:0:8]} 69. Rf7 {[%emt 0:0:10]} Kxa7 {[%emt 0:0:6]} 70. Rxc7+ {[%emt 0:0:2]} Kb6 {[%emt 0:0:1]} 71. Rc8 {[%emt 0:0:1]
} Kb5 {[%emt 0:0:4]} 72. Rb8+ {[%emt 0:0:6]} Kc5 {[%emt 0:0:0]} 73. Rc8 {[%emt 0:0:9]} Rg3+ {[%emt 0:0:2]} 74. Kb2 {[%emt 0:0:1]} Kb5 {[%emt 0:0:1]} 0-1